[Event "ROU-ch Men 2018"]
[Site "Olanesti"]
[Date "2018.05.20"]
[Round "7"]
[White "Bobocea, Laurentiu-Vlad"]
[Black "Rusan, Paul-Cristian"]
[Result "0-1"]
[ECO "E73"]
[WhiteElo "1853"]
[BlackElo "2213"]
[Annotator "NA"]
[PlyCount "84"]
[EventDate "2018.??.??"]
[EventType "swiss"]
[EventCountry "ROU"]
[SourceTitle "playchess.com"]
[Source "ChessBase"]
[SourceQuality "1"]
[TimeControl "40/5400+30:1800+30"]

1. d4 {[%emt 0:05:41]} Nf6 {[%emt 0:00:10]} 2. c4 {[%emt 0:00:08]} g6 {[%emt 0:00:20]} 3. Nc3 {[%emt 0:00:05]} Bg7 {[%emt 0:00:04]} 4. e4 {[%emt 0:00:05]} d6 {[%emt 0:00:04]} 5. Be2 {[%emt 0:00:09]} O-O {[%emt 0:00:12]} 6. Bg5 {[%emt 0:00:11]} Na6 {[%emt 0:01:35]} 7. Qd2 {[%emt 0:00:31]} e5 {[%emt 0:00:17]} 8. d5 {[%emt 0:00:11]} Nc5 {[%emt 0:00:11]} 9. f3 {[%emt 0:00:17]} h6 {[%emt 0:01:52]} 10. Be3 {[%emt 0:00:05]} a5 {[%emt 0:00:10]} 11. h4 {[%emt 0:06:40]} Nh5 {[%emt 0:14:07] E73: Königsindisch (Awerbach-Angriff)} 12. Bxh6 {[%emt 0:02:08]} Ng3 {[%emt 0:03:13]} 13. Rh2 {[%emt 0:00:18]} f5 {[%emt 0:08:59]} 14. Bxg7 {[%emt 0:02:57]} Kxg7 {[%emt 0:00:33] [#]} 15. Bd3 $146 {[%emt 0:07:04]} ({Vorgänger:} 15. exf5 Bxf5 16. Kf2 Nh5 17. g3 Qf6 18. Nh3 e4 19. f4 {½-½ (67) Ivanov,S (2545)-Zakharevich,I (2430) Kazan 1995}) 15... f4 {[%emt 0:07:51]} 16. Nge2 {[%emt 0:03:00]} Bd7 {[%emt 0:02:13]} 17. O-O-O {[%emt 0:04:29]} Rh8 {[%emt 0:01:23]} 18. Nxg3 {[%emt 0:04:25]} fxg3 {[%emt 0:00:29]} 19. Rhh1 {[%emt 0:00:02]} Rxh4 {[%emt 0:01:04]} 20. Bc2 {[%emt 0:03:02]} Qh8 {[%emt 0:08:12]} 21. Rxh4 {[%emt 0:02:59]} Qxh4 {[%emt 0:00:34]} 22. Ne2 {[%emt 0:03:24]} b5 {[%emt 0:03:26]} 23. cxb5 {[%emt 0:14:30]} Bxb5 {[%emt 0:01:18]} 24. Nc3 {[%emt 0:00:05]} Bd7 {[%emt 0:01:36]} 25. Kb1 {[%emt 0:01:47]} g5 {[%emt 0:16:59]} 26. Qc1 {[%emt 0:13:15]} Rh8 {[%emt 0:01:01]} 27. Bd3 {[%emt 0:01:36]} Qf4 {[%emt 0:05:10]} 28. Ne2 {[%emt 0:09:32]} Qxc1+ {[%emt 0:00:48]} 29. Kxc1 {[%emt 0:00:12]} Rh2 {[%emt 0:03:20]} 30. Nxg3 {[%emt 0:09:35]} Rxg2 {[%emt 0:01:21]} 31. Nf1 {[%emt 0:02:14]} Rf2 {[%emt 0:02:28]} 32. Bc2 {[%emt 0:00:50]} Rxf3 {[%emt 0:01:39]} 33. Nd2 {[%emt 0:00:04]} Rf4 {[%emt 0:01:16]} 34. Rg1 {[%emt 0:01:26]} g4 {[%emt 0:03:09]} 35. Kd1 {[%emt 0:01:38]} Bb5 {[%emt 0:04:55]} 36. Nb1 {[%emt 0:01:47]} Nxe4 {[%emt 0:01:51]} 37. Bxe4 {[%emt 0:00:06]} Rxe4 {[%emt 0:00:11]} 38. Nc3 {[%emt 0:00:02]} Rd4+ {[%emt 0:00:10]} 39. Kc2 {[%emt 0:01:25]} Bd7 {[%emt 0:03:25]} 40. Rd1 {[%emt 0:00:00]} Kf6 {[%emt 0:01:35]} 41. Rf1+ {[%emt 0:01:28]} Bf5+ $19 {[%emt 0:02:37]} 42. Kc1 {[%emt 0:00:59]} Kg5 {[%emt 0:00:49]} 0-1

[Event "ROU-ch Men 2018"]
[Site "Olanesti"]
[Date "2018.05.20"]
[Round "7"]
[White "Cenusa, Mihai"]
[Black "Albu, George"]
[Result "1/2-1/2"]
[ECO "B47"]
[WhiteElo "1819"]
[BlackElo "2038"]
[Annotator "NA"]
[PlyCount "186"]
[EventDate "2018.??.??"]
[EventType "swiss"]
[EventCountry "ROU"]
[SourceTitle "playchess.com"]
[Source "ChessBase"]
[SourceQuality "1"]
[TimeControl "40/5400+30:1800+30"]

1. e4 {[%emt 0:00:00]} c5 {[%emt 0:00:06]} 2. Nf3 {[%emt 0:00:00]} e6 {[%emt 0:00:09]} 3. Nc3 {[%emt 0:00:37]} Nc6 {[%emt 0:00:09]} 4. d4 {[%emt 0:00:28]} cxd4 {[%emt 0:00:07]} 5. Nxd4 {[%emt 0:00:06]} Qc7 {[%emt 0:00:19]} 6. Nxc6 {[%emt 0:04:41]} dxc6 {[%emt 0:00:10]} 7. g3 $146 {[%emt 0:01:34] B47: Sicilian: Taimanov: 5 Nc3 Qc7 6 f4, 6 g3 and 6 Be2} ({Predecessor:} 7. f4 e5 8. f5 Nf6 9. Qf3 Bc5 10. Bg5 b5 11. O-O-O Bb7 12. Kb1 a6 13. g4 Bd6 14. Be3 O-O-O {1-0 (32) Jakubiec,A (2547)-Stefansson,H (2573) Czechia 2010}) 7... e5 {[%emt 0:00:16]} 8. Bc4 {[%emt 0:01:35]} Nf6 {[%emt 0:00:40]} 9. Be3 {[%emt 0:05:07]} b5 {[%emt 0:02:58]} 10. Bd3 {[%emt 0:00:35]} Bh3 {[%emt 0:06:58]} 11. f3 {[%emt 0:03:27]} h5 {[%emt 0:02:44]} 12. Qe2 {[%emt 0:00:29]} Be7 {[%emt 0:05:57]} 13. a4 {[%emt 0:02:49]} b4 {[%emt 0:01:02]} 14. Nd1 {[%emt 0:00:05]} Be6 {[%emt 0:07:19]} 15. b3 {[%emt 0:01:25]} Nh7 {[%emt 0:11:38]} 16. f4 {[%emt 0:00:56]} Bg4 {[%emt 0:11:37]} 17. Qf2 {[%emt 0:01:27]} Bxd1 {[%emt 0:09:26]} 18. Rxd1 {[%emt 0:00:23]} Nf6 {[%emt 0:00:18]} 19. h3 {[%emt 0:03:43]} Bd6 {[%emt 0:04:50]} 20. f5 {[%emt 0:02:47]} Nd7 {[%emt 0:02:17]} 21. O-O {[%emt 0:00:59]} a5 {[%emt 0:08:49]} 22. Rd2 {[%emt 0:02:48]} Qb8 {[%emt 0:17:27]} 23. Rfd1 {[%emt 0:00:54]} Nf6 {[%emt 0:00:15]} 24. Qf3 {[%emt 0:00:38]} Bc7 {[%emt 0:00:28]} 25. Kg2 {[%emt 0:01:23]} Qb7 {[%emt 0:01:24]} 26. Bc4 {[%emt 0:00:58]} Rd8 {[%emt 0:00:59]} 27. Bg5 {[%emt 0:02:16]} Rxd2+ {[%emt 0:00:33]} 28. Rxd2 {[%emt 0:00:06]} Bb6 {[%emt 0:00:31]} 29. Rd6 {[%emt 0:04:09]} Ke7 {[%emt 0:01:21]} 30. Rd3 {[%emt 0:02:04]} Qa7 {[%emt 0:00:33]} 31. Qe2 {[%emt 0:12:03]} Bc5 {[%emt 0:00:21]} 32. Kf3 {[%emt 0:00:41]} Bd4 {[%emt 0:00:45]} 33. Kg2 {[%emt 0:03:39]} Bc5 {[%emt 0:00:07]} 34. Kf1 {[%emt 0:00:19]} Bd4 {[%emt 0:00:27]} 35. Bd2 {[%emt 0:03:46]} Rd8 {[%emt 0:00:49]} 36. Bg5 {[%emt 0:00:58]} Rh8 {[%emt 0:00:07]} 37. Kg2 {[%emt 0:02:35]} Qb6 {[%emt 0:00:19]} 38. Kf3 {[%emt 0:00:17]} Qa7 {[%emt 0:00:10]} 39. Rd1 {[%emt 0:00:25]} Rd8 {[%emt 0:00:38]} 40. Rd3 {[%emt 0:00:00]} Rh8 {[%emt 0:01:27]} 41. Be3 {[%emt 0:05:32]} Bxe3 {[%emt 0:03:48]} 42. Qxe3 {[%emt 0:00:50]} Qxe3+ {[%emt 0:00:25]} 43. Kxe3 {[%emt 0:00:08]} h4 {[%emt 0:05:13]} 44. g4 {[%emt 0:00:23]} Nh7 {[%emt 0:00:20]} 45. Rd1 Ng5 {[%emt 0:00:14]} 46. Bf1 {[%emt 0:02:00]} Rc8 {[%emt 0:01:15]} 47. Bg2 {[%emt 0:01:14]} f6 {[%emt 0:00:57]} 48. Rc1 {[%emt 0:03:20]} Kd6 {[%emt 0:01:07]} 49. c3 {[%emt 0:00:42]} bxc3 {[%emt 0:00:34]} 50. Kd3 {[%emt 0:02:43]} Rb8 {[%emt 0:00:42]} 51. Kxc3 {[%emt 0:02:19]} Rb4 {[%emt 0:00:13]} 52. Rd1+ {[%emt 0:00:33]} Kc7 {[%emt 0:01:44]} 53. Re1 {[%emt 0:00:09]} Nf7 {[%emt 0:07:35]} 54. Re3 {[%emt 0:00:13]} Nd6 {[%emt 0:00:36]} 55. Kc2 {[%emt 0:04:27]} c5 {[%emt 0:02:40]} 56. Rc3 {[%emt 0:04:59]} Kc6 {[%emt 0:00:33]} 57. Kd3 {[%emt 0:00:37]} Rd4+ {[%emt 0:01:18]} 58. Ke3 {[%emt 0:01:00]} c4 {[%emt 0:00:37]} 59. Kf3 {[%emt 0:01:18]} Kc5 {[%emt 0:00:26]} 60. Re3 {[%emt 0:08:42]} Kb4 {[%emt 0:01:18]} 61. bxc4 {[%emt 0:02:11]} Nxc4 {[%emt 0:00:10]} 62. Re1 {[%emt 0:03:59]} Rd3+ {[%emt 0:00:58]} 63. Kf2 {[%emt 0:00:57]} Kxa4 {[%emt 0:02:07]} 64. Bf1 {[%emt 0:03:32]} Rd2+ {[%emt 0:00:37]} 65. Kf3 {[%emt 0:01:10]} Na3 {[%emt 0:00:55]} 66. Rc1 {[%emt 0:02:04]} Rd7 {[%emt 0:01:02]} 67. g5 {[%emt 0:01:06]} fxg5 {[%emt 0:02:04]} 68. Kg4 {[%emt 0:00:25]} Re7 {[%emt 0:03:23]} 69. Kxg5 {[%emt 0:00:36]} Kb3 {[%emt 0:00:04]} 70. Rc6 {[%emt 0:01:19]} Nc2 {[%emt 0:00:56]} 71. Bc4+ {[%emt 0:04:03]} Kb4 {[%emt 0:00:46]} 72. Bg8 {[%emt 0:01:56]} Nd4 {[%emt 0:01:01]} 73. Rc8 {[%emt 0:00:39]} a4 {[%emt 0:01:07]} 74. Kxh4 {[%emt 0:01:33]} Nb5 {[%emt 0:00:51]} 75. Rb8 {[%emt 0:01:24]} Kc5 {[%emt 0:01:09]} 76. Kg5 {[%emt 0:00:14]} Nd6 {[%emt 0:00:51]} 77. Bd5 {[%emt 0:00:13]} Ne8 {[%emt 0:00:32]} 78. Rc8+ {[%emt 0:04:10]} Nc7 {[%emt 0:01:20]} 79. f6 {[%emt 0:00:23]} gxf6+ {[%emt 0:00:04]} 80. Kxf6 {[%emt 0:00:07]} Rh7 {[%emt 0:00:22]} 81. Kg6 $14 {[%emt 0:00:33]} Rd7 {[%emt 0:00:30]} 82. h4 {[%emt 0:00:21]} Kd4 {[%emt 0:00:54]} 83. Bf7 {[%emt 0:01:02]} Kxe4 {[%emt 0:00:44]} 84. h5 {[%emt 0:00:27]} Nd5 {[%emt 0:01:12]} 85. Rc4+ {[%emt 0:02:39]} Kd3 {[%emt 0:00:10]} 86. Bxd5 {[%emt 0:00:32]} Rxd5 {[%emt 0:00:06]} 87. Rxa4 {[%emt 0:00:11]} e4 {[%emt 0:00:11]} 88. h6 {[%emt 0:02:14]} Rd6+ {[%emt 0:00:04]} 89. Kg5 {[%emt 0:00:15]} Rd7 {[%emt 0:00:21]} 90. Ra1 {[%emt 0:00:31]} Rb7 {[%emt 0:00:39]} 91. Rh1 {[%emt 0:00:32]} e3 {[%emt 0:00:15]} 92. h7 {[%emt 0:01:07]} Rxh7 {[%emt 0:00:12]} 93. Rxh7 {[%emt 0:00:04]} e2 {[%emt 0:00:09]} 1/2-1/2

[Event "ROU-ch Men 2018"]
[Site "Olanesti"]
[Date "2018.05.21"]
[Round "8"]
[White "Dobre, Claudiu-Cristian"]
[Black "Manea, Alexandru"]
[Result "1/2-1/2"]
[ECO "A01"]
[WhiteElo "2393"]
[BlackElo "2402"]
[Annotator "RC"]
[PlyCount "89"]
[EventDate "2018.??.??"]
[EventType "swiss"]
[EventCountry "ROU"]
[SourceTitle "playchess.com"]
[Source "ChessBase"]
[SourceQuality "1"]
[TimeControl "40/5400+30:1800+30"]

1. b3 {[%emt 0:00:00]} a5 {[%emt 0:14:07]} 2. Bb2 {[%emt 0:07:55]} a4 {[%emt 0:00:37]} 3. a3 {[%emt 0:00:10]} axb3 {[%emt 0:00:57]} 4. cxb3 {[%emt 0:00:09]} Nf6 {[%emt 0:00:08]} 5. Nf3 {[%emt 0:11:14]} g6 {[%emt 0:04:09]} 6. e4 {[%emt 0:06:53]} Bg7 {[%emt 0:01:54]} 7. d3 {[%emt 0:06:42]} O-O {[%emt 0:00:24]} 8. Nbd2 {[%emt 0:00:27]} c5 {[%emt 0:03:24]} 9. Be2 {[%emt 0:07:44]} Nc6 {[%emt 0:00:22]} 10. O-O {[%emt 0:03:18]} d6 {[%emt 0:01:21]} 11. d4 {[%emt 0:05:33]} Nh5 {[%emt 0:01:07]} 12. Nc4 {[%emt 0:00:08]} b5 {[%emt 0:20:48]} 13. Ne3 {[%emt 0:01:18]} Ba6 {[%emt 0:00:48]} 14. g3 {[%emt 0:01:10]} Na5 {[%emt 0:10:00]} 15. Qc2 {[%emt 0:05:16]} c4 {[%emt 0:02:23]} 16. bxc4 {[%emt 0:00:31]} Nxc4 {[%emt 0:00:36]} 17. Nxc4 {[%emt 0:09:41]} bxc4 {[%emt 0:00:23]} 18. Bc3 {[%emt 0:00:24]} d5 {[%emt 0:02:49]} 19. exd5 {[%emt 0:04:59]} Nf6 {[%emt 0:00:30]} 20. Ne5 {[%emt 0:00:10]} Nxd5 {[%emt 0:00:02]} 21. Bf3 {[%emt 0:00:30]} Qd6 {[%emt 0:00:40]} 22. Rfb1 {[%emt 0:09:09]} Rab8 {[%emt 0:02:17]} 23. Bb4 {[%emt 0:03:06]} Nxb4 {[%emt 0:02:11]} 24. axb4 {[%emt 0:00:08]} Bb5 {[%emt 0:00:28]} 25. Qc3 {[%emt 0:01:40]} Rfd8 {[%emt 0:21:18]} 26. Rd1 {[%emt 0:00:35]} Qb6 {[%emt 0:02:30]} 27. Ra3 {[%emt 0:09:38]} Rbc8 {[%emt 0:00:46]} 28. Be2 {[%emt 0:01:09]} e6 {[%emt 0:00:40]} 29. Qa1 {[%emt 0:01:41]} f6 {[%emt 0:04:06]} 30. Ng4 {[%emt 0:00:29]} h5 {[%emt 0:00:05]} 31. Ne3 {[%emt 0:00:10]} f5 {[%emt 0:00:01]} 32. Nc2 {[%emt 0:00:41]} h4 {[%emt 0:01:53]} 33. Bf3 {[%emt 0:00:34]} h3 {[%emt 0:00:20]} 34. Ra7 {[%emt 0:01:56]} Rc7 {[%emt 0:01:56]} 35. Rxc7 {[%emt 0:00:13]} Qxc7 {[%emt 0:00:01]} 36. Qa5 {[%emt 0:00:20]} Qd7 {[%emt 0:00:53]} 37. Ra1 {[%emt 0:01:21]} Bxd4 {[%emt 0:01:00]} 38. Nxd4 {[%emt 0:00:44]} Qxd4 {[%emt 0:00:03]} 39. Re1 {[%emt 0:00:59]} Qd3 {[%emt 0:01:26]} 40. Qb6 {[%emt 0:00:00]} Rd6 {[%emt 0:00:31]} 41. Qxb5 {[%emt 0:05:30]} Qxf3 {[%emt 0:00:08]} 42. Qe8+ {[%emt 0:00:23]} Kg7 {[%emt 0:01:48]} 43. Qe7+ {[%emt 0:00:06]} Kg8 {[%emt 0:01:33]} 44. Qe8+ {[%emt 0:00:06]} Kg7 {[%emt 0:00:11]} 45. Qe7+ {[%emt 0:00:06]} 1/2-1/2

[Event "ROU-ch Men 2018"]
[Site "Olanesti"]
[Date "2018.05.21"]
[Round "8"]
[White "Chima, Radu-Niculin"]
[Black "Sava, Bogdan"]
[Result "1/2-1/2"]
[ECO "C50"]
[WhiteElo "2095"]
[BlackElo "2099"]
[Annotator "NA RC"]
[PlyCount "40"]
[EventDate "2018.??.??"]
[EventType "swiss"]
[EventCountry "ROU"]
[SourceTitle "playchess.com"]
[Source "ChessBase"]
[SourceQuality "1"]
[TimeControl "40/5400+30:1800+30"]

1. e4 {[%emt 0:00:00]} e5 {[%emt 0:00:17]} 2. Nf3 {[%emt 0:00:00]} Nc6 {[%emt 0:00:06]} 3. Bc4 {[%emt 0:00:00]} Nf6 {[%emt 0:00:23]} 4. d3 {[%emt 0:00:00]} Bc5 {[%emt 0:00:30]} 5. O-O {[%emt 0:00:11]} O-O {[%emt 0:01:24]} 6. Bb3 {[%emt 0:01:48]} d6 {[%emt 0:00:24]} 7. c3 {[%emt 0:03:21]} a6 {[%emt 0:01:41]} 8. h3 {[%emt 0:00:56]} Ba7 {[%emt 0:01:24]} 9. Re1 {[%emt 0:00:24]} Ne7 {[%emt 0:00:47]} 10. Nbd2 {[%emt 0:00:22]} Ng6 {[%emt 0:00:23]} 11. Nf1 {[%emt 0:00:18]} h6 {[%emt 0:00:58]} 12. Ng3 {[%emt 0:00:48]} b5 {[%emt 0:01:24]} 13. a4 {[%emt 0:04:41]} Bd7 {[%emt 0:02:01]} 14. d4 {[%emt 0:01:17]} c5 {[%emt 0:07:47]} 15. axb5 {[%emt 0:06:10]} axb5 {[%emt 0:00:36]} 16. dxe5 {[%emt 0:04:44]} dxe5 {[%emt 0:00:25]} 17. Bd5 {[%emt 0:10:56]} Nxd5 {[%emt 0:00:14]} 18. Qxd5 {[%emt 0:02:32]} Qc7 {[%emt 0:03:43]} 19. Be3 {[%emt 0:05:12]} Be6 {[%emt 0:02:28]} 20. Qd2 {[%emt 0:01:59]} Rfd8 {[%emt 0:01:22]} 1/2-1/2

[Event "ROU-ch Men 2018"]
[Site "Olanesti"]
[Date "2018.05.21"]
[Round "8"]
[White "Albu, George"]
[Black "Berechet, Stefan-Mario"]
[Result "1-0"]
[ECO "D06"]
[WhiteElo "2038"]
[BlackElo "1879"]
[Annotator "NA"]
[PlyCount "119"]
[EventDate "2018.??.??"]
[EventType "swiss"]
[EventCountry "ROU"]
[SourceTitle "playchess.com"]
[Source "ChessBase"]
[SourceQuality "1"]
[TimeControl "40/5400+30:1800+30"]

1. d4 {[%emt 0:03:21]} d5 {[%emt 0:00:21]} 2. c4 {[%emt 0:00:07]} Bf5 {[%emt 0:00:03]} 3. Nc3 {[%emt 0:00:10]} e6 {[%emt 0:00:06]} 4. cxd5 {[%emt 0:00:30]} exd5 {[%emt 0:00:05]} 5. Qb3 {[%emt 0:00:30]} Nc6 {[%emt 0:00:04]} 6. Qa4 {[%emt 0:18:33]} Qd7 {[%emt 0:01:31]} 7. a3 {[%emt 0:03:13]} Nf6 {[%emt 0:03:06]} 8. Bf4 $11 {[%emt 0:05:19]} Bd6 {[%emt 0:01:57]} 9. Bxd6 {[%emt 0:03:53]} Qxd6 {[%emt 0:00:07]} 10. Nf3 {[%emt 0:00:17]} O-O {[%emt 0:00:17]} 11. Rc1 {[%emt 0:01:56]} a6 {[%emt 0:00:43]} 12. b4 {[%emt 0:06:18]} Rfe8 {[%emt 0:08:38]} 13. e3 {[%emt 0:02:20]} Na7 {[%emt 0:08:51]} 14. Qb3 {[%emt 0:01:45]} b5 {[%emt 0:03:24]} 15. Be2 {[%emt 0:02:26]} Nc8 {[%emt 0:00:34]} 16. Bxb5 {[%emt 0:08:35]} axb5 {[%emt 0:02:37]} 17. Nxb5 {[%emt 0:00:50]} Qa6 {[%emt 0:04:55]} 18. Nxc7 {[%emt 0:02:27]} Qxa3 {[%emt 0:00:08]} 19. Qxa3 {[%emt 0:00:09]} Rxa3 {[%emt 0:00:01]} 20. Nxe8 {[%emt 0:00:14]} Nxe8 {[%emt 0:00:03]} 21. O-O {[%emt 0:01:54]} Ned6 {[%emt 0:01:47]} 22. Rc5 {[%emt 0:02:43]} Nb6 {[%emt 0:02:09]} 23. Rc6 {[%emt 0:09:14]} Ndc4 {[%emt 0:01:51]} 24. Ne5 {[%emt 0:00:49]} Rb3 {[%emt 0:03:30]} 25. Nxc4 {[%emt 0:04:51]} Nxc4 {[%emt 0:00:07]} 26. e4 {[%emt 0:02:42]} Bd7 {[%emt 0:01:05]} 27. Rc7 {[%emt 0:02:20]} Nb6 {[%emt 0:00:37]} 28. Rb7 {[%emt 0:00:12]} Rxb4 {[%emt 0:00:03]} 29. Rb8+ {[%emt 0:00:11]} Bc8 {[%emt 0:00:28]} 30. Rc1 {[%emt 0:00:10]} Kf8 {[%emt 0:01:45]} 31. Rcxc8+ {[%emt 0:02:33]} Ke7 {[%emt 0:02:09]} 32. Rb7+ {[%emt 0:00:40]} Kd6 {[%emt 0:00:11]} 33. e5+ {[%emt 0:00:07]} Ke6 {[%emt 0:00:04]} 34. Rc6+ {[%emt 0:00:09]} Kf5 {[%emt 0:00:02]} 35. Rcxb6 {[%emt 0:00:20]} Rxd4 {[%emt 0:00:08]} 36. Rxf7+ {[%emt 0:00:23]} Kxe5 {[%emt 0:00:04]} 37. g3 {[%emt 0:00:14]} Rd1+ {[%emt 0:00:03]} 38. Kg2 {[%emt 0:00:05]} d4 {[%emt 0:00:03]} 39. Rxg7 {[%emt 0:00:37]} d3 {[%emt 0:00:04]} 40. Rxh7 {[%emt 0:00:00]} d2 {[%emt 0:00:04]} 41. Rd7 {[%emt 0:00:30]} Ke4 {[%emt 0:00:21]} 42. Rbd6 {[%emt 0:01:36]} Re1 {[%emt 0:00:18]} 43. Rxd2 {[%emt 0:00:08]} Kf5 {[%emt 0:00:07]} 44. R2d5+ {[%emt 0:00:13]} Ke6 {[%emt 0:00:04]} 45. R7d6+ {[%emt 0:00:08]} Ke7 {[%emt 0:00:04]} 46. Rb6 {[%emt 0:00:08]} Rc1 {[%emt 0:00:05]} 47. Rh5 {[%emt 0:00:05]} Kf8 {[%emt 0:00:12]} 48. Rb7 {[%emt 0:00:04]} Kg8 {[%emt 0:00:03]} 49. Ra5 {[%emt 0:00:15]} Rc8 {[%emt 0:00:05]} 50. h4 {[%emt 0:00:08]} Rf8 {[%emt 0:00:04]} 51. h5 {[%emt 0:00:06]} Kh8 {[%emt 0:00:06]} 52. Raa7 {[%emt 0:00:05]} Re8 {[%emt 0:00:06]} 53. g4 {[%emt 0:00:07]} Rc8 {[%emt 0:00:03]} 54. Kg3 {[%emt 0:00:04]} Rc3+ {[%emt 0:00:04]} 55. f3 {[%emt 0:00:04]} Rc8 {[%emt 0:00:03]} 56. g5 {[%emt 0:00:16]} Rd8 {[%emt 0:00:05]} 57. Kg4 {[%emt 0:00:04]} Re8 {[%emt 0:00:05]} 58. f4 {[%emt 0:00:05]} Rd8 {[%emt 0:00:03]} 59. h6 {[%emt 0:00:05]} Rd7 {[%emt 0:00:22]} 60. Rxd7 {[%emt 0:00:09]} 1-0

[Event "ROU-ch Men 2018"]
[Site "Olanesti"]
[Date "2018.05.21"]
[Round "8"]
[White "Iustin, Silviu"]
[Black "Raducanu, Andrei-Augustin"]
[Result "1-0"]
[ECO "B09"]
[WhiteElo "1962"]
[BlackElo "2063"]
[Annotator "NA"]
[PlyCount "120"]
[EventDate "2018.??.??"]
[EventType "swiss"]
[EventCountry "ROU"]
[SourceTitle "playchess.com"]
[Source "ChessBase"]
[SourceQuality "1"]
[TimeControl "40/5400+30:1800+30"]

1. e4 {[%emt 0:00:00]} d6 {[%emt 0:00:06]} 2. d4 {[%emt 0:00:00]} Nf6 {[%emt 0:00:05]} 3. Nc3 {[%emt 0:00:00]} g6 {[%emt 0:00:05]} 4. f4 {[%emt 0:00:00]} Bg7 {[%emt 0:00:05]} 5. Bd3 {[%emt 0:00:25]} O-O {[%emt 0:00:50]} 6. Nf3 {[%emt 0:00:21]} Na6 {[%emt 0:00:06]} 7. O-O {[%emt 0:00:55]} c5 {[%emt 0:00:15]} 8. d5 {[%emt 0:00:44]} Bg4 {[%emt 0:12:30]} 9. h3 {[%emt 0:01:41]} Bxf3 {[%emt 0:00:08]} 10. Qxf3 {[%emt 0:00:15]} Nb4 {[%emt 0:01:37]} 11. a3 {[%emt 0:11:25]} Nxd3 {[%emt 0:00:13]} 12. Qxd3 {[%emt 0:00:09]} a6 {[%emt 0:22:26]} 13. a4 {[%emt 0:00:43]} b6 {[%emt 0:00:58] B09: Pirc-Ufimzew-Verteidigung (Dreibauernangriff)} (13... Qc7 14. Be3 Rfe8 15. Rae1 Rad8 16. Bf2 Qa5 17. Ra1 Nd7 18. Ra3 Rc8 19. Qf3 Rb8 20. Rb1 Qc7 21. Nd1 {½-½ (65) Yu,R (2538)-Tkachiev,V (2659) Fujairah 2012}) 14. Bd2 {[%emt 0:01:38]} Qc7 {[%emt 0:02:02]} 15. Rae1 $146 {[%emt 0:01:21]} ({Vorgänger:} 15. Qc4 Qb7 16. e5 Nd7 17. exd6 exd6 18. f5 Rae8 19. Qh4 Bf6 20. Bg5 Bxg5 21. Qxg5 {½-½ (33) Turqueza,M (2181)-Garcia,J (2344) Tagaytay City 2011}) 15... c4 {[%emt 0:01:46]} 16. Qf3 {[%emt 0:04:52]} Nd7 {[%emt 0:03:58]} 17. Kh1 {[%emt 0:13:48]} Rfb8 {[%emt 0:04:11]} 18. Nd1 {[%emt 0:02:06]} b5 {[%emt 0:09:53]} 19. axb5 {[%emt 0:00:22]} axb5 {[%emt 0:02:48]} 20. Bc3 {[%emt 0:00:26]} Bxc3 {[%emt 0:02:15]} 21. Nxc3 {[%emt 0:01:52]} b4 {[%emt 0:00:05]} 22. Nd1 {[%emt 0:07:09]} b3 {[%emt 0:05:41]} 23. c3 {[%emt 0:00:33]} Ra2 {[%emt 0:14:09]} 24. h4 {[%emt 0:03:33]} h5 {[%emt 0:03:20]} 25. g4 {[%emt 0:02:18]} hxg4 {[%emt 0:00:19]} 26. Qxg4 {[%emt 0:00:10]} Kg7 {[%emt 0:02:57]} 27. Re2 {[%emt 0:12:51]} Rh8 {[%emt 0:01:39]} 28. Rh2 {[%emt 0:00:32]} Nf6 {[%emt 0:07:27]} 29. Qf3 {[%emt 0:00:31]} Rh5 {[%emt 0:00:51]} 30. Rg1 {[%emt 0:01:39]} Kf8 {[%emt 0:00:07]} 31. Ne3 {[%emt 0:04:48] [#]} Qc8 $2 {[%emt 0:02:11]} (31... Qa7 $1 $17 {hält den Druck.} 32. f5 Ra1 33. fxg6 Rxg1+ 34. Kxg1 Re5) 32. f5 {[%emt 0:06:00]} gxf5 {[%emt 0:00:12]} 33. Nxf5 {[%emt 0:00:15]} Rh7 {[%emt 0:00:59]} 34. Nxd6 {[%emt 0:05:47]} Qc7 {[%emt 0:00:08]} 35. e5 Nxd5 36. Qxd5 {[%emt 0:04:03]} exd6 {[%emt 0:00:27]} 37. exd6 {[%emt 0:03:00]} Qa5 {[%emt 0:00:09]} 38. Rd1 {[%emt 0:03:47]} Qxd5+ {[%emt 0:00:37]} 39. Rxd5 {[%emt 0:00:01]} Ra1+ {[%emt 0:01:14]} 40. Kg2 {[%emt 0:00:00]} Ke8 {[%emt 0:00:33]} 41. d7+ {[%emt 0:01:58]} Kd8 {[%emt 0:00:03]} 42. Kf3 {[%emt 0:00:27]} Ra7 {[%emt 0:03:39]} 43. Ke4 {[%emt 0:00:47]} Rh6 {[%emt 0:04:06]} 44. Kd4 {[%emt 0:00:24]} Rc7 {[%emt 0:00:21]} 45. h5 {[%emt 0:00:21]} f5 {[%emt 0:01:58]} 46. Rxf5 {[%emt 0:00:19]} Rcc6 {[%emt 0:05:47]} 47. Rd5 $18 {[%emt 0:00:33]} Rhf6 {[%emt 0:00:12]} 48. Re2 {[%emt 0:00:17]} Rf4+ {[%emt 0:00:28]} 49. Re4 {[%emt 0:00:09]} Rf8 {[%emt 0:00:22]} 50. Re8+ {[%emt 0:00:06]} Rxe8 {[%emt 0:00:08]} 51. dxe8=Q+ {[%emt 0:00:10]} Kxe8 {[%emt 0:00:03]} 52. Rc5 {[%emt 0:00:03]} Rb6 {[%emt 0:02:25]} 53. Kxc4 {[%emt 0:00:13]} Kd7 {[%emt 0:00:21]} 54. Rb5 {[%emt 0:00:06]} Rf6 {[%emt 0:00:30]} 55. Kxb3 {[%emt 0:00:05]} Kc6 {[%emt 0:00:05]} 56. Rg5 {[%emt 0:00:05]} Kd7 {[%emt 0:00:17]} 57. Rg6 {[%emt 0:00:10]} Rf4 {[%emt 0:00:38]} 58. h6 {[%emt 0:00:06]} Rh4 {[%emt 0:00:03]} 59. Rg7+ {[%emt 0:00:05]} Ke6 {[%emt 0:00:32]} 60. h7 {[%emt 0:00:08]} Kd5 1-0